Cogmind - Beta 15 @@@ ROGUE MODE // 2025.07.04 @ 19:59:00 Player: 7604 Result: Destroyed by LZ-0YT(R) with Subdweller Laser Performance ------------- Evolutions (0) 0 Regions Visited (2) 400 Robots Destroyed (32) 160 Value Destroyed (630) 630 Prototype IDs (3) 60 Alien Tech Used (0) 0 Bonus (-128) -128 TOTAL SCORE: 1122 Bonus ------- Friendly Fire -128 Cogmind --------- Core Integrity 0/250 Matter 290/300 Energy 76/200 System Corruption 0% Temperature Cool (6) Movement Rolling (110) Location -10/Subcaves Parts ------- > --- POWER (1) -------- Subdweller Power Source > --- PROPULSION (2) --- Subdweller Monowheel Subdweller Monowheel > --- UTILITY (2) ------ Large Storage Unit Seismic Detector > --- WEAPON (2) ------- Subdweller Laser Subdweller Laser > --- INVENTORY (15) --- Light Ion Engine Light Treads Subdweller Monowheel Heat Sink Improved Terrain Scanner Makeshift Kinetic Plating Riot Gun Battle Rifle Battle Rifle Battle Cannon Grenade Launcher Subdweller Shrapnel Launcher Makeshift Axe Peak State ------------ > --- POWER ------------ Subdweller Power Source > --- PROPULSION ------- Subdweller Monowheel Subdweller Monowheel > --- UTILITY ---------- Large Storage Unit Seismic Detector > --- WEAPON ----------- Subdweller Laser Subdweller Beam Cannon > --- INVENTORY -------- Light Ion Engine Light Treads Heat Sink Improved Terrain Scanner Makeshift Kinetic Plating Riot Gun Subdweller Laser Battle Rifle Battle Rifle Subdweller Machine Gun Subdweller Machine Gun Battle Cannon Grenade Launcher Subdweller Shrapnel Launcher Makeshift Axe [Rating: 15] Favorites ----------- Power Subdweller Power Source Engine Subdweller Power Source Propulsion Light Treads Treads Light Treads Wheel Subdweller Monowheel Utility Large Storage Unit Device Seismic Detector Storage Large Storage Unit Weapon Subdweller Laser Energy Gun Subdweller Laser Energy Cannon Subdweller Beam Cannon Ballistic Gun Subdweller Machine Gun Special Weapon Mining Laser Build | -11 -10 -10 ------- Run | Yrd Mat Sub Slots Evolved . | . . . Power . | . . . Propulsion . | . . . Utility . | . . . Weapon . | . . . Parts Attached 25 | 8 5 12 Power 4 | 2 . 2 Engine 4 | 2 . 2 Core . | . . . Reactor . | . . . Propulsion 6 | 2 . 4 Treads 4 | 2 . 2 Leg . | . . . Wheel 2 | . . 2 Hover . | . . . Flight . | . . . Utility 6 | 2 3 1 Device 4 | 1 2 1 Storage 2 | 1 1 . Processor . | . . . Hackware . | . . . Protection . | . . . Artifact . | . . . Weapon 9 | 2 2 5 Energy Gun 6 | 2 1 3 Energy Cannon 1 | . . 1 Ballistic Gun 1 | . . 1 Ballistic Cannon . | . . . Launcher . | . . . Special Weapon 1 | . 1 . Impact Weapon . | . . . Slashing Weapon . | . . . Piercing Weapon . | . . . Special Melee Weapon . | . . . Unidentified Prototypes . | . . . Parts Lost 7 | . 2 5 Power 1 | . 1 . Propulsion 3 | . . 3 Utility 1 | . . 1 Weapon 2 | . 1 1 Highest Loss Streak 2 | . 1 2 To Critical Strikes . | . . . Average Backups 11 | 2 6 14 Power . | . . . Propulsion 1 | . . 1 Utility 1 | . 1 2 Weapon 7 | 1 4 9 Tool/Special . | . . . Unused Backups 14 | . 2 12 Power . | . . . Propulsion 3 | . 2 1 Utility 1 | . . 1 Weapon 10 | . . 10 Tool/Special . | . . . Average Slot Usage (%) 99 | . 99 99 Engine 14 | . 14 14 Treads 27 | . 28 26 Device 13 | . 13 13 Storage 14 | . 14 14 Energy Gun 19 | . 27 15 Energy Cannon 8 | . . 11 Peak Build Rating 15 | 7 9 15 Average Rating 10 | 5 7 12 On Entrance 5 | . 7 8 Naked Turns . | . . . Heaviest Build 38 | 15 30 38 Greatest Support 40 | 40 40 40 Greatest Overweight (x) 1 | . . 1 Average Overweight (x) . | . . . Largest Inventory Capacity 15 | 8 15 15 Average Capacity 14 | 7 14 15 Most Carried 15 | 3 15 15 Average Carried 11 | 2 6 14 Final Capacity 15 | 8 15 15 Final Carried 13 | 3 13 13 Class Distribution -------------------- 51% | Mutant 48% | Scavenger-Mutant Dominant Class ---------------- Mutant | -10/Materials Scavenger-Mutant | -10/Subcaves Resources | -11 -10 -10 ----------- Run | Yrd Mat Sub Matter Collected 644 | 270 150 224 Remotely . | . . . Salvage Created 963 | 69 514 380 Parts 73 | 6 36 31 Haulers Intercepted 2 | . 2 . Recyclers Shooed . | . . . Parts Field Recycled . | . . . Retrieved Matter . | . . . Parts Self-Destructed 27 | . . 27 Prevented . | . . . Kills | -11 -10 -10 ------- Run | Yrd Mat Sub Combat Hostiles Destroyed 23 | . 12 11 Guns 13 | . 9 4 Cannons 7 | . . 7 Classes Destroyed 8 | 1 5 2 Tunneler 4 | 3 1 . Hauler 2 | . 2 . Operator 1 | . 1 . Watcher 2 | . 2 . Swarmer 12 | . 7 5 Grunt 5 | . 5 . Artisan 2 | . . 2 Subdweller 6 | . . 6 Best Kill Streak 3 | 1 3 3 Combat Bots Only 3 | . 3 3 Max Kills in Single Turn 1 | 1 1 1 Gunslinging . | . . . Exploded . | . . . Melee . | . . . Uniques/NPCs Destroyed . | . . . Combat | -11 -10 -10 -------- Run | Yrd Mat Sub Hostile Shots Fired 106 | . 61 45 Missed 34 | . 21 13 Hits 72 | . 40 32 Projectile 72 | . 40 32 Part Disruptions 1 | . 1 . Damage Taken 1057 | . 427 630 Core 251 | . 49 202 Absorbed by Shields . | . . . Core Remaining (%) 100 | 100 . . Volleys Fired 136 | 12 55 69 Largest 2 | 2 2 2 Hottest 140 | 100 100 140 Shots Fired 215 | 24 104 87 Gun 150 | 24 100 26 Cannon 61 | . . 61 Launcher . | . . . Special 4 | . 4 . Kinetic 2 | . . 2 Thermal 213 | 24 104 85 Explosive . | . . . Electromagnetic . | . . . Robot Hit Streak 12 | 5 12 11 Robot Miss Streak 4 | 2 4 2 Penetration Max . | . . . Secondary Targets 1 | . 1 . Max Gunslinging Chain 1 | . 1 . Shots Hit Robots 115 | 16 61 38 Core Hits 39 | 3 23 13 Critical Kills . | . . . Critical Parts Destroyed . | . . . Critical Strikes 16 | 4 10 2 Burn 16 | 4 10 2 Melee Attacks . | . . . Impact . | . . . Slashing . | . . . Piercing . | . . . Sneak Attacks . | . . . Combat Hostiles . | . . . Follow-up Attacks . | . . . Damage Inflicted 1893 | 200 861 832 Guns 1246 | 200 772 274 Cannons 558 | . . 558 Explosions 89 | . 89 . Melee . | . . . Ramming . | . . . Kinetic 44 | . . 44 Thermal 1760 | 200 772 788 Explosive . | . . . Electromagnetic 89 | . 89 . Impact . | . . . Slashing . | . . . Piercing . | . . . Highest Corruption . | . . . Average Corruption . | . . . Corruption Purged . | . . . Corruption Blocked . | . . . Overload Shots . | . . . Overflow Damage 25 | . . 25 Projectiles 25 | . . 25 Explosions . | . . . Melee . | . . . Knockbacks . | . . . Impact . | . . . Kinetic . | . . . Secondary . | . . . Self-Inflicted Damage 68 | . 68 . Shots 2 | . 2 . Rammed . | . . . Targets Rammed . | . . . Kicked . | . . . Crushed . | . . . Highest Temperature 276 | 117 276 24 Average Temperature 55 | 56 61 11 Received Heat Transfer 138 | . 72 66 Siege Activations . | . . . Martial Activations . | . . . Shielding Activations . | . . . Robots Disrupted . | . . . Combat Hostiles . | . . . Robots Corrupted . | . . . Combat Hostiles . | . . . Parts Fried 1 | . 1 . Impact Corruptions . | . . . Robots Melted 3 | . 3 . Combat Hostiles 3 | . 3 . Parts Melted 5 | . 4 1 Heat Transferred 5158 | 888 2997 1273 Parts Sabotaged . | . . . Parts Stolen . | . . . Parts Stripped . | . . . Power Chain Reactions 1 | . 1 . Alert | -11 -10 -10 ------- Run | Yrd Mat Sub Maximum Alert Level . | . . . Low Security (%) 100 | 100 100 . Level 1 . | . . . Level 2 . | . . . Level 3 . | . . . Level 4 . | . . . Level 5 . | . . . High Security . | . . . Max Security . | . . . Peak Influence 87 | 5 87 . Initial . | . . . Average 26 | . 30 . Influence Increases 821 | 15 416 390 Destroy 0b10 Robot/C 340 | . 240 100 Destroy 0b10 Robot/NC 50 | 15 35 . Destroy Leader 78 | . 58 20 Successful Hack 15 | . 15 . Disable Machine 30 | . 30 . Destroy Structure 8 | . 8 . Lose Combat Pursuer 300 | . 30 270 Influence Decreases 677 | 15 367 295 Entered New Map 25 | . . 25 Time Decay 612 | 15 347 250 Lost Part 40 | . 20 20 Squads Dispatched 4 | . 4 . Investigation 2 | . 2 . Extermination . | . . . Reinforcement 2 | . 2 . Assault . | . . . Garrison . | . . . Intercept . | . . . Searches Triggered . | . . . Construction Impeded . | . . . Haulers Reinforced . | . . . Active Scanning Responses . | . . . Cargo Convoy Interrupts . | . . . Stealth | -11 -10 -10 --------- Run | Yrd Mat Sub Distress Signals 3 | . 3 . Communications Jammed . | . . . Distress Signals . | . . . Times Spotted 53 | . 23 30 Peak Tracking Total 4 | . 3 4 Tactical Retreats 12 | . 2 10 Traps | -11 -10 -10 ------- Run | Yrd Mat Sub Traps Triggered 6 | . 2 4 Indirectly . | . . . Trap Hack Attempts . | . . . Triggered . | . . . Disarmed . | . . . Reprogrammed . | . . . Reused . | . . . Traps Extracted . | . . . Installed . | . . . Triggered . | . . . Machines | -11 -10 -10 ---------- Run | Yrd Mat Sub Machines Disabled 3 | . 2 1 Max in Single Turn 2 | . 2 1 Machines Repaired . | . . . Machines Dismantled . | . . . Machines Sabotaged . | . . . Overloaded Fab Kills . | . . . Hacking | -11 -10 -10 --------- Run | Yrd Mat Sub Machines Accessed 8 | . 7 1 Terminals 7 | . 7 . Fabricators . | . . . Repair Stations . | . . . Recycling Units . | . . . Scanalyzers . | . . . Garrison Access . | . . . Total Hacks 33 | . 29 4 Successful 20 | . 16 4 Failed 13 | . 13 . Catastrophic 1 | . 1 . Database Lockouts . | . . . Manual 27 | . 27 . Terminals 29 | . 29 . Fabricators . | . . . Repair Stations . | . . . Recycling Units . | . . . Scanalyzers . | . . . Garrison Access . | . . . Terminal Hacks 11 | . 7 4 Record 4 | . . 4 Robot Analysis 2 | . 2 . Prototype ID Bank 2 | . 2 . Zone Layout 3 | . 3 . Fabricator Hacks . | . . . Repair Station Hacks . | . . . Recycling Unit Hacks . | . . . Scanalyzer . | . . . Garrison Access Hacks . | . . . Unauthorized Hacks 9 | . 9 . Terminals 9 | . 9 . Botnet 2 | . 2 . Operators 1 | . 1 . Skim 6 | . 6 . Fabricators . | . . . Repair Stations . | . . . Recycling Units . | . . . Scanalyzers . | . . . Garrison Access . | . . . Data Cores Recovered . | . . . Used . | . . . Hacking Detections 7 | . 7 . Full Trace Events . | . . . Feedback Events . | . . . Feedback Blocked . | . . . Robot Schematics Acquired . | . . . Robots Built . | . . . Authchips . | . . . Time . | . . . Total Robot Build Rating . | . . . Part Schematics Acquired . | . . . Parts Built . | . . . Authchips . | . . . Time . | . . . Total Part Build Rating . | . . . Parts Repaired . | . . . Time . | . . . Parts Recycled . | . . . Recycled Matter . | . . . Retrieved Matter . | . . . Retrieved Components . | . . . Parts Scanalyzed . | . . . Part Schematics Acquired . | . . . Parts Damaged . | . . . Bothacking | -11 -10 -10 ------------ Run | Yrd Mat Sub Used RIF Installer . | . . . Robots Hacked . | . . . Non-combat . | . . . Combat . | . . . Robot Hacks Applied . | . . . Relay Couplers Released . | . . . Fabnet Peak Effective % . | . . . Robots Rewired . | . . . Allies Hacked . | . . . Hacks Repelled . | . . . Allies | -11 -10 -10 -------- Run | Yrd Mat Sub Total Allies . | . . . Largest Group . | . . . Highest-Rated Group . | . . . Highest-Rated Ally . | . . . Total Orders . | . . . Ally Attacks . | . . . Total Damage . | . . . Kills . | . . . Allies Corrupted . | . . . Allies Melted . | . . . Intel | -11 -10 -10 ------- Run | Yrd Mat Sub Active Infowar (turns) 4485 | 16 1207 3262 Terrain 397 | . . 397 Seismic 4088 | 16 1207 2865 Robot Analysis Total 2 | . 2 . Derelict Logs Recovered . | . . . Drone Launches . | . . . Drone Recoveries . | . . . Exploration | -11 -10 -10 ------------- Run | Yrd Mat Sub Turns Passed 4802 | 188 1345 3269 Spaces Moved 2125 | 87 487 1551 Core 4 | 4 . . Treads 2015 | 83 487 1445 Legs . | . . . Wheels 106 | . . 106 Hover . | . . . Flight . | . . . Fastest Speed 50 | 50 160 110 Average Speed 157 | 154 160 156 Slowest Speed 240 | 160 160 240 Overloaded Moves . | . . . Propulsion Burnouts . | . . . Robots Hopped . | . . . Potential Cave-ins . | . . . Cave-ins Triggered . | . . . Exploration Rate (%) 51 | 4 74 75 Regions Visited 2 Branch Regions 1 Pre-discovered Areas 2 | . 1 1 Known Exits Taken . | . . . Unknown Exits Taken 2 | 1 1 . Scrap Searched 8 | . . 8 Spaces Dug 20 | . 4 16 Terrain Destroyed 24 | . 6 18 Melee . | . . . Projectile 22 | . 4 18 AOE 2 | . 2 . Terrain Rammed . | . . . Walls Destroyed . | . . . Machines Disabled . | . . . Actions | -11 -10 -10 --------- Run | Yrd Mat Sub Total 3349 | 112 938 2299 Wait 1002 | 4 364 634 Move 2123 | 86 486 1551 Hop . | . . . Pick Up 27 | 2 14 11 Fast Attach 8 | 7 . 1 Attach 8 | . 4 4 Detach 2 | . 2 . Swap 30 | 1 10 19 Drop 13 | . 3 10 Fire 136 | 12 55 69 Melee . | . . . Ram . | . . . Kick . | . . . Crush . | . . . Escape Stasis . | . . . Rewire . | . . . Trap . | . . . Miscellaneous . | . . . Route ------- -11/Scrapyard -10/Materials (discovered 4 exits: [*Mat x2] / [*Min] / *Sub) -10/Subcaves (discovered 1 exit: [*Mat]) History --------- Turn | Location | Event 8 | -11/Scrapyard | Discovered new exit (range 14) 189 | -11/Scrapyard | Entered Materials 308 | -10/Materials | Build established: Mutant 642 | -10/Materials | Discovered new exit (range 19) 809 | -10/Materials | Discovered new exit (range 16) 1003 | -10/Materials | Learned Storage terminal intel 1049 | -10/Materials | Learned Storage emergency access door positions 1131 | -10/Materials | Learned location of Recycling (-8) 1156 | -10/Materials | Loaded intel: 1 repair station location 1289 | -10/Materials | Derelicts attacked the area 1316 | -10/Materials | Discovered new exit (range 12) 1515 | -10/Materials | Discovered new exit (range 10) 1534 | -10/Materials | Entered Subcaves 1535 | -10/Subcaves | Approached by a straggling Scientist 1656 | -10/Subcaves | Disturbed a concealed Subdweller 1961 | -10/Subcaves | Build established: Scavenger-Mutant 2051 | -10/Subcaves | Visited Clippyterm 2055 | -10/Subcaves | Learned location of Extension (-5) 2151 | -10/Subcaves | A swath of the cavern ceiling suddenly collapsed 2301 | -10/Subcaves | Build established: Mutant 2417 | -10/Subcaves | Ambushed by Subdweller buried in earth 2478 | -10/Subcaves | A swath of the cavern ceiling suddenly collapsed 2800 | -10/Subcaves | Core integrity fell below 50% 2933 | -10/Subcaves | Visited 4L-MR0's lab 3102 | -10/Subcaves | Build established: Scavenger-Mutant 3785 | -10/Subcaves | Core integrity fell below 20% 4352 | -10/Subcaves | Shifting Twisted Machinery released Riot Gun 4366 | -10/Subcaves | Shifting Twisted Machinery released Mak. Kinetic Plating 4426 | -10/Subcaves | Disturbed a concealed Subdweller 4759 | -10/Subcaves | Discovered new exit (range 9) 4794 | -10/Subcaves | Ambushed by angry Subdweller bent on revenge 4803 | -10/Subcaves | Destroyed by LZ-0YT(R) with Subdweller Laser Last Messages --------------- 04655_ J4-XW2(R) affixes Scrap Shield Fragment to Scrap Shield. 04656_ J4-XW2(R) destroyed. 04664_ Acquired Sub. Monowheel. 04667_ Acquired 20 matter. 04673_ Dropped Sub. Machine Gun. 04674_ Acquired Sub. Monowheel. 04759_ EXIT=FOUND 04776_ Subatomizers dissect the Sub. Power Source. 04786_ CN-ASG(u) deconstructs Twisted Machinery. 04787_ Subatomizers dissect the Sub. Power Source. 04793_ Destroyed Multitool. 04793_ CN-ASG(u) cries out in pain. 04793_ CN-ASG(u) destroyed. 04794_ LZ-0YT(R) angrily emerges from the Twisted Machinery. 04794_ LZ-0YT(R): "SUBMAD!" 04799_ Sub. Beam Cannon destroyed. Map ----- +----------------------------------------------------+ | ?"???????????????????????????????????????????????? | | ?? ?????????????????????????????????????????????? | | ???"?????????????????????????????????????????????? | | ?"##?????????????????????????????????????????????? | | #???##???????????????????????????????????????????? | | ?###??#?#????????????????????????????????????????? | | "#?????#???????????????????????????????????????? | | #?????????????????????????????????????????????? | | # ?"??????????????????????????????????????????? | | ?""????????????????????????????????????????? | | ]!=????????????????????????????????????????? | | &]%& ???????????????????????????????????????? | | #?? ?#??????????????????????????????????????? | | #?? ???#??????????????###?????????????????????? | | "# ??#?#????????###### ?????????????????????? | | ?### ????????????? ?????????????????????? | | ?#?#??###??????????" ?????????????????????? | | ##???#???#?????????? ??????? ?????????????? | | ????#??#???????????? " ""????? " ?#???????????? | | #?##????????????????? &% ?????? "???????????? | | #????????????????????? %! ]?????# #???????????? | | #???? ??#?????????????# * ????# #????????????? | | ???????????????????????; "????#" #????????????? | | # ?#?# ???????????????# #????#"" #?????????????? | | ??#???????????????????## #???## #?????????????? | | #?#??#????????????????#" @##### ##????????????? | | ?#??#?????????????????# R%# # "" #????????????? | | ??#???????????????????## ""= """ #?????????????? | | #??????????????????????# "" " #?????????????? | | ???????????????????????# #" # ##????????????? | | ???????????????????????####### ##???????????? | | ?????????????????????????????# ######??????? | | ?????????????????????????????#" *& #??????? | | ???????????????????????##???#### &%& #??????? | | ???????????????????????# # & ##??????? | | ???????????????????? ##???????? | | ???????????????????? ####????????? | | ??????????????????????# # # ## # %##???????????? | | ??????????????????????????####?### = #???????????? | | ???????????????????????????????### ##???????????? | | ?????????????????????????###??## <%#????????????? | | ?????????????????????????# ## ###??????????? | | ?????????????????????# %% ##?????????? | | ??????????????? ??## # # % % #?????????? | | ??????????????? ?# ???### ##?????????? | | ??????????????? ## ?????# #??????????? | | ???????????????? ????## ## ####????????? | | ?????????????????? ????# ### #????????? | | ???????????????????# ????## # #????????? | | ???????????????????# ##### % #????????? | +----------------------------------------------------+ Best States ------------- Heat Dissipation 35 Energy Generation 15 Energy Capacity 250 Matter Stores 300 Matter Capacity 300 Sight Range 16 Terrain Scan Range 16 Terrain Scan Density 10 Evasion (%) 40 Recoil Reduction 2 Item Schematics ----------------- None Robot Schematics ------------------ None Fabricated ------------ Nothing Repaired ---------- Nothing Alien Tech Used ----------------- None Achievements -------------- None Challenges ------------ None Game ------ Seed AccelerationShadeNetwork Manual? 0 Play Time 00:23:52 Cumulative 512.4 hours Start 2025.07.04 @ 19:36:06 End 2025.07.04 @ 19:59:00 Sessions 1 Manual Loads 0 Difficulty Rogue Special Mode None Game No. 271 Rogue 208 Adventurer 63 Explorer 0 Win Type - Total 9 Types 8/0/0/1/0/0/0/0/0/0 Lore% 90 Gallery% 82 Achievement% 67 Wizard Run 0 Options --------- Layout 2 ASCII 0 Keyboard 1 Movement Numpad Keybinds 0 Fullscreen 2 Font 24/Terminus Map View 50x44 Zoom Use 0% Tactical HUD 1 Map Filters NONE Filters NONE Steam 1 RUN: 121fd9ec-9068-4009-a1c1-0f4b1c014853